lending/lending_fUSD_20251106
["ID","MTS","AMOUNT","RATE_DAILY","PERIOD"]
[393286207,1762426175962,500.0,0.00038695,120]
[393286211,1762426176133,500.0,0.00038695,120]
[393286214,1762426176388,500.0,0.00038695,120]
[393286216,1762426176644,500.0,0.00038695,120]
[393286217,1762426176877,500.0,0.00038695,120]
[393286218,1762426176950,194.72990374,0.00038695,120]
[393286219,1762426177109,500.0,0.00038695,120]
[393286221,1762426177380,318.67690035,0.00038695,120]
[393286226,1762426178272,194.07830975,0.00038695,120]
[393286230,1762426178994,345.08689739,0.00038695,120]
[393286240,1762426180309,360.77887216,0.00038695,120]
[393286249,1762426181559,258.75485972,0.00038695,120]
[393286250,1762426181933,219.42351772,0.00038695,120]
[393286251,1762426183060,326.63976748,0.00038695,120]
[393286252,1762426183431,190.85423842,0.00038695,120]
[393286253,1762426185103,500.0,0.00038695,120]
[393286254,1762426185254,500.0,0.00038695,120]
[393286256,1762426185345,500.0,0.00038695,120]
[393286258,1762426185493,500.0,0.00038695,120]
[393286260,1762426185660,500.0,0.00038695,120]
[393286262,1762426185761,500.0,0.00038695,120]
[393286267,1762426185993,500.0,0.00038695,120]
[393286269,1762426186053,500.0,0.00038695,120]
[393286273,1762426186226,500.0,0.00038695,120]
[393286275,1762426186284,500.0,0.00038695,120]
[393286278,1762426186468,500.0,0.00038695,120]
[393286279,1762426186529,500.0,0.00038695,120]
[393286281,1762426186770,500.0,0.00038695,120]
[393286283,1762426186837,500.0,0.00038695,120]
[393286285,1762426187007,500.0,0.00038695,120]
[393286286,1762426187069,500.0,0.00038695,120]
[393286288,1762426187242,500.0,0.00038695,120]
[393286289,1762426187303,500.0,0.00038695,120]
[393286291,1762426187483,500.0,0.00038695,120]
[393286292,1762426187549,500.0,0.00038695,120]
[393286294,1762426187732,500.0,0.00038695,120]
[393286295,1762426187801,500.0,0.00038695,120]
[393286297,1762426187991,500.0,0.00038695,120]
[393286298,1762426188056,526.68867878,0.00038695,120]
[393286300,1762426188119,500.0,0.00038695,120]
[393286301,1762426188183,170.21917319,0.00038695,120]
[393286302,1762426188243,500.0,0.00038695,120]
[393286303,1762426188305,500.0,0.00038695,120]
[393286305,1762426188363,500.0,0.00038695,120]
[393286306,1762426188466,500.0,0.00038695,120]
[393286307,1762426188535,500.0,0.00038695,120]
[393286309,1762426188597,500.0,0.00038695,120]
[393286310,1762426188700,500.0,0.00038695,120]
[393286311,1762426188760,302.06881941,0.00038695,120]
[393286313,1762426189056,500.0,0.00038695,120]
[393286315,1762426189123,500.0,0.00038695,120]
[393286316,1762426189186,500.0,0.00038695,120]
[393286317,1762426189253,500.0,0.00038695,120]
[393286319,1762426189385,500.0,0.00038695,120]
[393286320,1762426189443,500.0,0.00038695,120]
[393286322,1762426189637,500.0,0.00038695,120]
[393286323,1762426189693,480.48859011,0.00038695,120]
[393286325,1762426189883,500.0,0.00038695,120]
[393286327,1762426190024,153.39439484,0.00038695,120]
[393286328,1762426190115,535.6727706,0.00038695,120]
[393286331,1762426190620,500.0,0.00038695,120]
[393286332,1762426190864,500.0,0.00038695,120]
[393286334,1762426191094,500.0,0.00038695,120]
[393286335,1762426191325,500.0,0.00038695,120]
[393286337,1762426191389,198.32486787,0.00038695,120]
[393286338,1762426191496,322.94664833,0.00038695,120]
[393286339,1762426191608,500.0,0.00038695,120]
[393286340,1762426191787,500.0,0.00038695,120]
[393286342,1762426192027,500.0,0.00038695,120]
[393286344,1762426192509,500.0,0.00038695,120]
[393286345,1762426192562,513.69258178,0.00038695,120]
[393286348,1762426194058,500.64021386,0.00038695,120]
[393286353,1762426196003,162.17366767,0.00038695,120]
[393286354,1762426196144,191.78505158,0.00038695,120]
[393286355,1762426196858,243.61641079,0.00038695,120]
[393286356,1762426200166,237.34935148,0.00038695,120]
[393286357,1762426201071,500.0,0.00038695,120]
[393286358,1762426201311,500.0,0.00038695,120]
[393286360,1762426201581,500.0,0.00038695,120]
[393286361,1762426201830,500.0,0.00038695,120]
[393286364,1762426202061,500.0,0.00038695,120]
[393286366,1762426202320,500.0,0.00038695,120]
[393286367,1762426202727,500.0,0.00038695,120]
[393286368,1762426202787,235.68371224,0.00038695,120]
[393286369,1762426202847,500.0,0.00038695,120]
[393286370,1762426203016,500.0,0.00038695,120]
[393286371,1762426203290,500.0,0.00038695,120]
[393286372,1762426203569,500.0,0.00038695,120]
[393286373,1762426203789,500.0,0.00038695,120]
[393286374,1762426204036,500.0,0.00038695,120]
[393286375,1762426204274,500.0,0.00038695,120]
[393286376,1762426204521,500.0,0.00038695,120]
[393286378,1762426204695,171.28896171,0.00038695,120]
[393286379,1762426204780,163.9184097,0.00038695,120]
[393286382,1762426205072,333.98740007,0.00038695,120]
[393286386,1762426205783,500.0,0.00038695,120]
[393286390,1762426206052,500.0,0.00038695,120]
[393286394,1762426206293,500.0,0.00038695,120]
[393286397,1762426206687,500.0,0.00038695,120]
[393286399,1762426207004,500.0,0.00038695,120]
[393286401,1762426207165,500.0,0.00038695,120]
[393286403,1762426207474,404.18314245,0.00038695,120]
[393286405,1762426207547,500.0,0.00038695,120]
[393286406,1762426207756,500.0,0.00038695,120]
[393286409,1762426207938,377.16942539,0.00038695,120]
[393286411,1762426208021,500.0,0.00038695,120]
[393286412,1762426208245,488.73823742,0.00038695,120]
[393286414,1762426208448,500.0,0.00038695,120]
[393286417,1762426208683,505.60878971,0.00038695,120]
[393286430,1762426215154,500.0,0.00038695,120]
[393286431,1762426215226,500.0,0.00038695,120]
[393286433,1762426215392,500.0,0.00038695,120]
[393286434,1762426215464,500.0,0.00038695,120]
[393286436,1762426215645,500.0,0.00038695,120]
[393286437,1762426215717,500.0,0.00038695,120]
[393286438,1762426215903,500.0,0.00038695,120]
[393286439,1762426215973,500.0,0.00038695,120]
[393286440,1762426216138,500.0,0.00038695,120]
[393286441,1762426216214,500.0,0.00038695,120]
[393286442,1762426216374,500.0,0.00038695,120]
[393286443,1762426216445,500.0,0.00038695,120]
[393286444,1762426216609,500.0,0.00038695,120]
[393286445,1762426216678,503.74371038,0.00038695,120]
[393286446,1762426216747,447.63521699,0.00038695,120]
[393286447,1762426216886,500.0,0.00038695,120]
[393286448,1762426217080,159.62356799,0.00038695,120]
[393286449,1762426217149,515.05167883,0.00038695,120]
[393286450,1762426218232,503.36002181,0.00038695,120]
[393286452,1762426218301,247.4194598,0.00038695,120]
[393286453,1762426218461,193.00030517,0.00038695,120]
[393286455,1762426219581,500.0,0.00038695,120]
[393286457,1762426219814,500.0,0.00038695,120]
[393286458,1762426219994,-226.24,0.00015038,2]
[393286459,1762426220081,500.0,0.00038695,120]
[393286460,1762426220303,500.0,0.00038695,120]
[393286461,1762426220380,519.55722645,0.00038695,120]
[393286462,1762426220537,204.28467097,0.00038695,120]
[393286463,1762426220618,500.0,0.00038695,120]
[393286464,1762426220739,189.30596314,0.00038695,120]
[393286465,1762426220809,500.0,0.00038695,120]
[393286466,1762426220888,500.0,0.00038695,120]
[393286468,1762426221097,375.07949282,0.00038695,120]
[393286478,1762426222317,501.67255539,0.00038695,120]
[393286500,1762426224132,501.00071469,0.00038695,120]
[393286513,1762426225714,500.0,0.00038695,120]
[393286514,1762426225794,204.30633345,0.00038695,120]
[393286516,1762426225951,335.687923,0.00038695,120]
[393286520,1762426227034,410.29686612,0.00038695,120]
[393286523,1762426227892,500.0,0.00038695,120]
[393286524,1762426228392,500.0,0.00038695,120]
[393286525,1762426228639,500.0,0.00038695,120]
[393286526,1762426228883,500.0,0.00038695,120]
[393286527,1762426229130,568.93204239,0.00038695,120]
[393286532,1762426230473,343.27397575,0.00038695,120]
[393286533,1762426230727,456.26744332,0.00038695,120]
[393286551,1762426232062,-500.0,0.00015107,2]
[393286553,1762426232072,-522.0,0.00015107,2]
[393286554,1762426232081,-200.0,0.00015286,2]
[393286555,1762426232091,-522.0,0.0001553,2]
[393286556,1762426232100,-300.0,0.00015665,2]
[393286557,1762426232109,-1200.0,0.00015665,2]
[393286558,1762426232120,-500.0,0.00015665,2]
[393286559,1762426232129,-500.0,0.00015665,2]
[393286560,1762426232138,-500.0,0.00015665,2]
[393286561,1762426232147,-300.0,0.00015666,2]
[393286562,1762426232157,-3657.16984271,0.00015669,2]
[393286564,1762426232293,178.84285647,0.00038695,120]
[393286565,1762426232327,-500.0,0.00015665,2]
[393286566,1762426232337,-500.0,0.00015665,2]
[393286567,1762426232348,-500.0,0.00015665,2]
[393286568,1762426232358,-500.0,0.00015665,2]
[393286569,1762426232367,-23556.2394218,0.00015669,2]
[393286570,1762426232378,-150.99,0.00015697,2]
[393286572,1762426232388,-4084.19,0.00015697,2]
[393286574,1762426232397,-9999.99,0.00015697,2]
[393286576,1762426232407,-999.99,0.00015697,2]
[393286578,1762426232416,-2374.8,0.00015697,2]
[393286579,1762426232425,-9999.99,0.00015697,2]
[393286580,1762426232434,-9999.99,0.00015697,2]
[393286581,1762426232443,-646.27543229,0.00015698,2]
[393286582,1762426232452,-944.03993803,0.00015699,2]
[393286583,1762426232462,-5000.0,0.00015699,2]
[393286584,1762426232472,-1000.0,0.00015699,2]
[393286586,1762426232481,-2500.0,0.00015699,2]
[393286587,1762426232491,-14126.85135647,0.00015699,2]
[393286588,1762426232500,-4502.07831903,0.00015699,2]
[393286589,1762426232509,-335.27227196,0.00015699,2]
[393286590,1762426232518,-1000.0,0.00015714,2]
[393286591,1762426232527,-500.0,0.00015773,2]
[393286592,1762426232536,-500.0,0.00015773,2]
[393286593,1762426232545,-500.0,0.00015773,2]
[393286594,1762426232554,-500.0,0.00015773,2]
[393286595,1762426232564,-500.0,0.00015773,2]
[393286596,1762426232573,-500.0,0.00015773,2]
[393286597,1762426232582,-500.0,0.00015773,2]
[393286598,1762426232592,-500.0,0.00015773,2]
[393286599,1762426232602,-500.0,0.00015773,2]
[393286600,1762426232612,-500.0,0.00015773,2]
[393286601,1762426232622,-500.0,0.00015773,2]
[393286602,1762426232632,-500.0,0.00015773,2]
[393286603,1762426232642,-500.0,0.00015773,2]
[393286604,1762426232651,-500.0,0.00015773,2]
[393286605,1762426232661,-500.0,0.00015773,2]
[393286606,1762426232670,-290.90535112,0.00015773,2]
[393286607,1762426232679,-500.0,0.00015773,2]
[393286608,1762426232688,-500.0,0.00015773,2]
[393286609,1762426232697,-504.69553816,0.00015773,2]
[393286610,1762426232707,-349.30178506,0.00015773,2]
[393286611,1762426232716,-684.3,0.00015789,2]
[393286612,1762426232726,-151.0,0.00015789,2]
[393286613,1762426232736,-151.0,0.00015789,2]
[393286614,1762426232745,-151.0,0.00015789,2]
[393286615,1762426232754,-151.0,0.00015789,2]
[393286616,1762426232764,-151.0,0.00015789,2]
[393286617,1762426232773,-151.0,0.00015789,2]
[393286618,1762426232782,-151.0,0.00015789,2]
[393286619,1762426232793,-151.0,0.00015789,2]
[393286620,1762426232803,-151.0,0.00015789,2]
[393286621,1762426232812,-151.0,0.00015789,2]
[393286622,1762426232822,-151.0,0.00015789,2]
[393286623,1762426232833,-151.0,0.00015789,2]
[393286624,1762426232841,-151.0,0.00015789,2]
[393286625,1762426232851,-151.0,0.00015789,2]
[393286626,1762426232860,-151.0,0.00015789,2]
[393286627,1762426232871,-151.0,0.00015789,2]
[393286628,1762426232880,-151.0,0.00015789,2]
[393286629,1762426232890,-151.0,0.00015789,2]
[393286630,1762426232899,-151.0,0.00015789,2]
[393286631,1762426232909,-151.0,0.00015789,2]
[393286632,1762426232919,-151.0,0.00015789,2]
[393286633,1762426232932,-151.0,0.00015789,2]
[393286634,1762426232941,-151.0,0.00015789,2]
[393286635,1762426232950,-151.0,0.00015789,2]
[393286636,1762426232959,-151.0,0.00015789,2]
[393286637,1762426232969,-151.0,0.00015789,2]
[393286638,1762426232978,-257.54438633,0.00015789,2]
[393286639,1762426232988,-770.42,0.00015798,2]
[393286640,1762426232997,-770.42,0.00015798,2]
[393286641,1762426233007,-500.0,0.00015798,2]
[393286642,1762426233016,-500.0,0.00015798,2]
[393286643,1762426233026,-500.0,0.00015798,2]
[393286644,1762426233035,-500.0,0.00015798,2]
[393286645,1762426233045,-500.0,0.00015798,2]
[393286646,1762426233055,-500.0,0.00015798,2]
[393286647,1762426233065,-500.0,0.00015798,2]
[393286648,1762426233074,-500.0,0.00015798,2]
[393286649,1762426233084,-44807.38484996,0.00015799,2]
[393286650,1762426233096,-19657.50277041,0.00015799,2]
[393286651,1762426233219,500.0,0.00038695,120]
[393286652,1762426233410,283.36904687,0.00038695,120]
[393286654,1762426233739,523.21970198,0.00038695,120]
[393286658,1762426234366,363.75113921,0.00038695,120]
[393286661,1762426234632,500.0,0.00038695,120]
[393286664,1762426234891,500.0,0.00038695,120]
[393286667,1762426235129,500.0,0.00038695,120]
[393286670,1762426235397,500.0,0.00038695,120]
[393286673,1762426235507,181.35008946,0.00038695,120]
[393286675,1762426235646,500.0,0.00038695,120]
[393286678,1762426235960,500.0,0.00038695,120]
[393286681,1762426236190,500.0,0.00038695,120]
[393286687,1762426237514,160.84296618,0.00038695,120]
[393286689,1762426237585,500.0,0.00038695,120]
[393286690,1762426237754,500.0,0.00038695,120]
[393286695,1762426238014,500.0,0.00038695,120]
[393286697,1762426238094,500.0,0.00038695,120]
[393286698,1762426238131,-500.0,0.00015665,2]
[393286699,1762426238141,-573.35535544,0.00015665,2]
[393286700,1762426238151,-500.0,0.00015665,2]
[393286701,1762426238162,-500.0,0.00015665,2]
[393286702,1762426238171,-500.0,0.00015665,2]
[393286703,1762426238181,-500.0,0.00015665,2]
[393286704,1762426238190,-500.0,0.00015665,2]
[393286705,1762426238200,-500.0,0.00015665,2]
[393286707,1762426238209,-500.0,0.00015665,2]
[393286708,1762426238218,-500.0,0.00015665,2]
[393286709,1762426238227,-500.0,0.00015665,2]
[393286710,1762426238237,-500.0,0.00015665,2]
[393286711,1762426238247,-500.0,0.00015665,2]
[393286712,1762426238256,-500.0,0.00015665,2]
[393286713,1762426238265,-500.0,0.00015665,2]
[393286714,1762426238275,-128736.37336543,0.00015799,2]
[393286715,1762426238346,500.0,0.00038695,120]
[393286716,1762426238358,-778.21164241,0.00015799,2]
[393286717,1762426238370,-3456.4259882,0.00015799,2]
[393286730,1762426238493,500.0,0.00038695,120]
[393286733,1762426238561,502.73246638,0.00038695,120]
[393286734,1762426238628,300.0,0.00038695,120]
[393286735,1762426238711,500.0,0.00038695,120]
[393286736,1762426238780,500.0,0.00038695,120]
[393286737,1762426238852,500.0,0.00038695,120]
[393286738,1762426239057,500.0,0.00038695,120]
[393286739,1762426239172,500.0,0.00038695,120]
[393286740,1762426239302,443.57379838,0.00038695,120]
[393286741,1762426239413,500.0,0.00038695,120]
[393286742,1762426239690,500.0,0.00038695,120]
[393286743,1762426239943,500.0,0.00038695,120]
[393286748,1762426240182,500.0,0.00038695,120]
[393286749,1762426240228,-653.20639961,0.00015799,2]
[393286750,1762426240283,-221910.89498398,0.00015799,2]
[393286751,1762426240292,-1000.0,0.00015799,2]
[393286752,1762426240303,-33260.0507,0.00015799,2]
[393286753,1762426240314,-226.24,0.00015874,2]
[393286754,1762426240324,-500.0,0.00015898,2]
[393286755,1762426240335,-509.6544265,0.00015898,2]
[393286756,1762426240347,-500.0,0.00015898,2]
[393286757,1762426240356,-500.0,0.00015898,2]
[393286758,1762426240366,-672.41,0.00015898,2]
[393286759,1762426240375,-672.41,0.00015898,2]
[393286760,1762426240385,-602.23460936,0.00015898,2]
[393286761,1762426240395,-163.71623282,0.00015898,2]
[393286762,1762426240405,-2102.18,0.00015898,2]
[393286763,1762426240415,-2102.18,0.00015898,2]
[393286764,1762426240424,-500.0,0.00015898,2]
[393286765,1762426240437,-500.0,0.00015898,2]
[393286766,1762426240446,-500.0,0.00015898,2]
[393286767,1762426240455,-500.0,0.00015898,2]
[393286768,1762426240464,-500.0,0.00015898,2]
[393286769,1762426240474,-500.0,0.00015898,2]
[393286770,1762426240485,-400.36653205,0.00015898,2]
[393286771,1762426240494,-500.0,0.00015898,2]
[393286772,1762426240504,-500.0,0.00015898,2]
[393286773,1762426240513,-500.0,0.00015898,2]
[393286774,1762426240523,-500.0,0.00015898,2]
[393286775,1762426240533,-500.0,0.00015898,2]
[393286776,1762426240542,-379.02356425,0.00015898,2]
[393286778,1762426240552,-14126.85135641,0.00015944,2]
[393286780,1762426240561,-4502.07831896,0.00015944,2]
[393286782,1762426240570,-335.27227191,0.00015944,2]
[393286784,1762426240580,-522.0,0.00015952,2]
[393286785,1762426240589,-166.66,0.00016054,2]
[393286787,1762426240599,-684.3,0.00016063,2]
[393286788,1762426240608,-7480.64,0.00016116,2]
[393286789,1762426240619,-14126.85135641,0.00016188,2]
[393286790,1762426240631,-4502.07831896,0.00016188,2]
[393286791,1762426240642,-335.27227191,0.00016188,2]
[393286792,1762426240651,-200.0,0.00016212,2]
[393286794,1762426240661,-478.71,0.00016234,2]
[393286795,1762426240671,-672.41,0.00016269,2]
[393286796,1762426240680,-2102.18,0.00016269,2]
[393286797,1762426240690,-500.0,0.00016269,2]
[393286798,1762426240699,-500.0,0.00016269,2]
[393286799,1762426240708,-500.0,0.00016269,2]
[393286800,1762426240718,-500.0,0.00016269,2]
[393286801,1762426240727,-1000.0,0.00016321,2]
[393286802,1762426240736,-1000.0,0.00016321,2]
[393286803,1762426240745,-502.73555537,0.00016321,2]
[393286804,1762426240755,-1000.0,0.00016321,2]
[393286805,1762426240764,-1016.7694007,0.00016321,2]
[393286806,1762426240773,-282.33179847,0.00016321,2]
[393286807,1762426240783,-1000.0,0.00016321,2]
[393286808,1762426240796,-352.20603691,0.00016321,2]
[393286809,1762426240806,-1000.70281537,0.00016321,2]
[393286810,1762426240816,-578.06406639,0.00016321,2]
[393286811,1762426240826,-1000.0,0.00016321,2]
[393286812,1762426240839,-1000.0,0.00016321,2]
[393286813,1762426240849,-1000.0,0.00016321,2]
[393286814,1762426240858,-182.8775756,0.00016321,2]
[393286815,1762426240868,-1000.0,0.00016321,2]
[393286816,1762426240878,-500.0,0.00016333,2]
[393286817,1762426240887,-500.0,0.00016333,2]
[393286818,1762426240897,-500.0,0.00016333,2]
[393286819,1762426240906,-621.31673857,0.00016333,2]
[393286820,1762426240915,-684.3,0.00016337,2]
[393286821,1762426240924,-500.0,0.0001634,2]
[393286822,1762426240934,-160.01934734,0.0001634,2]
[393286823,1762426240943,-3330.3903652,0.00016353,2]
[393286824,1762426240953,-522.0,0.00016374,2]
[393286825,1762426240962,-500.0,0.00016429,2]
[393286826,1762426240971,-500.90089396,0.00016429,2]
[393286827,1762426240981,-500.0,0.00016429,2]
[393286828,1762426240990,-14126.85135641,0.00016433,2]
[393286829,1762426241011,-4502.07831896,0.00016433,2]
[393286830,1762426241028,-500.0,0.00016438,2]
[393286831,1762426241038,-500.0,0.00016438,2]
[393286832,1762426241050,-500.0,0.00016438,2]
[393286833,1762426241060,-500.0,0.00016438,2]
[393286834,1762426241069,-287.99296913,0.00016438,2]
[393286835,1762426241078,-500.0,0.00016438,2]
[393286836,1762426241087,-500.0,0.00016438,2]
[393286837,1762426241097,-500.0,0.00016438,2]
[393286838,1762426241106,-501.13567703,0.00016438,2]
[393286839,1762426241115,-163.35,0.0001644,2]
[393286840,1762426241124,-500.0,0.00016447,2]
[393286841,1762426241133,-500.0,0.00016447,2]
[393286842,1762426241143,-500.0,0.00016447,2]
[393286843,1762426241152,-150.0,0.00016447,2]
[393286844,1762426241161,-500.0,0.00016447,2]
[393286845,1762426241170,-500.0,0.00016447,2]
[393286846,1762426241179,-500.0,0.00016447,2]
[393286847,1762426241189,-500.0,0.00016447,2]
[393286848,1762426241198,-408.3599179,0.00016447,2]
[393286849,1762426241207,-500.0,0.00016447,2]
[393286850,1762426241216,-300.0,0.00016447,2]
[393286851,1762426241226,-152.08698658,0.00016447,2]
[393286852,1762426241235,-500.0,0.00016447,2]
[393286853,1762426241247,-150.0,0.00016447,2]
[393286854,1762426241255,-599.0,0.00016447,2]
[393286855,1762426241265,-500.0,0.00016447,2]
[393286856,1762426241274,-150.0,0.00016447,2]
[393286857,1762426241283,-500.0,0.00016447,2]
[393286858,1762426241293,-150.0,0.00016447,2]
[393286859,1762426241302,-150.0,0.00016447,2]
[393286860,1762426241312,-152.54268606,0.00016447,2]
[393286861,1762426241321,-152.00625849,0.00016447,2]
[393286862,1762426241330,-150.0,0.00016447,2]
[393286863,1762426241339,-202.37031601,0.00016447,2]
[393286864,1762426241348,-150.0,0.00016447,2]
[393286865,1762426241357,-154.15552868,0.00016447,2]
[393286866,1762426241367,-154.17848018,0.00016447,2]
[393286867,1762426241376,-162.44257324,0.00016447,2]
[393286868,1762426241386,-300.0,0.00016537,2]
[393286869,1762426241395,-238.10507591,0.00016537,2]
[393286870,1762426241404,-283.7415811,0.00016537,2]
[393286871,1762426241413,-195.0,0.00016537,2]
[393286872,1762426241423,-2500.0,0.00016537,2]
[393286873,1762426241432,-200.0,0.00016537,2]
[393286874,1762426241441,-200.0,0.00016537,2]
[393286875,1762426241451,-200.0,0.00016537,2]
[393286876,1762426241460,-201.07254976,0.00016537,2]
[393286877,1762426241470,-250.0,0.00016542,2]
[393286878,1762426241479,-300.0,0.00016542,2]
[393286879,1762426241488,-300.0,0.00016542,2]
[393286880,1762426241498,-300.0,0.00016542,2]
[393286881,1762426241507,-300.0,0.00016542,2]
[393286882,1762426241516,-323.34285068,0.00016542,2]
[393286883,1762426241526,-250.0,0.00016542,2]
[393286884,1762426241536,-250.0,0.00016542,2]
[393286885,1762426241545,-300.0,0.00016542,2]
[393286886,1762426241555,-344.20218103,0.00016555,2]
[393286887,1762426241564,-500.0,0.00016584,2]
[393286888,1762426241574,-500.0,0.00016584,2]
[393286889,1762426241583,-505.03214734,0.00016584,2]
[393286890,1762426241592,-150.0,0.00016584,2]
[393286891,1762426241601,-500.0,0.00016584,2]
[393286892,1762426241611,-300.0,0.00016584,2]
[393286893,1762426241620,-500.0,0.00016584,2]
[393286894,1762426241630,-150.0,0.00016584,2]
[393286895,1762426241649,-599.0,0.00016584,2]
[393286896,1762426241658,-516.33548393,0.00016584,2]
[393286897,1762426241667,-150.0,0.00016584,2]
[393286898,1762426241676,-500.0,0.00016584,2]
[393286899,1762426241686,-150.0,0.00016584,2]
[393286900,1762426241696,-150.0,0.00016584,2]
[393286901,1762426241705,-150.0,0.00016584,2]
[393286902,1762426241714,-150.0,0.00016584,2]
[393286903,1762426241724,-684.3,0.00016611,2]
[393286904,1762426241733,-14126.85135641,0.00016677,2]
[393286905,1762426241742,-4502.07831896,0.00016677,2]
[393286906,1762426241752,-1089.82945508,0.00016683,2]
[393286907,1762426241762,-226.24,0.00016709,2]
[393286908,1762426241771,-180.85,0.00016712,2]
[393286909,1762426241780,-500.0,0.0001672,2]
[393286910,1762426241791,-500.0,0.00016721,2]
[393286911,1762426241803,-251.64103016,0.00016721,2]
[393286912,1762426241812,-150.0,0.00016721,2]
[393286913,1762426241822,-500.0,0.00016721,2]
[393286914,1762426241831,-300.0,0.00016721,2]
[393286915,1762426241842,-500.0,0.00016721,2]
[393286916,1762426241852,-150.0,0.00016721,2]
[393286917,1762426241862,-599.0,0.00016721,2]
[393286918,1762426241872,-500.0,0.00016721,2]
[393286919,1762426241882,-150.0,0.00016721,2]
[393286920,1762426241893,-150.0,0.00016721,2]
[393286921,1762426241903,-150.0,0.00016721,2]
[393286922,1762426241912,-150.0,0.00016721,2]
[393286923,1762426241921,-672.41,0.00016732,2]
[393286924,1762426241930,-2102.18,0.00016732,2]
[393286925,1762426241940,-500.0,0.00016732,2]
[393286926,1762426241950,-500.0,0.00016732,2]
[393286927,1762426241960,-500.0,0.00016732,2]
[393286928,1762426241969,-500.0,0.00016732,2]
[393286929,1762426241978,-500.0,0.00016767,2]
[393286930,1762426242226,-366.61185413,0.00016778,2]
[393286931,1762426242237,-510.0,0.00016794,2]
[393286932,1762426242247,-500.0,0.00016858,2]
[393286933,1762426242256,-200.84185402,0.00016858,2]
[393286934,1762426242264,-500.0,0.00016858,2]
[393286935,1762426242274,-300.0,0.00016858,2]
[393286936,1762426242284,-500.0,0.00016858,2]
[393286937,1762426242294,-200.0,0.00016858,2]
[393286938,1762426242303,-599.0,0.00016858,2]
[393286939,1762426242312,-500.0,0.00016858,2]
[393286940,1762426242321,-228.39525195,0.00016858,2]
[393286941,1762426242331,-150.0,0.00016858,2]
[393286942,1762426242340,-150.0,0.00016858,2]
[393286943,1762426242348,-150.0,0.00016858,2]
[393286944,1762426242357,-1355.25282514,0.00016868,2]
[393286945,1762426242366,-1500.0,0.00016868,2]
[393286946,1762426242375,-1196.23949712,0.00016868,2]
[393286947,1762426242384,-1500.0,0.00016868,2]
[393286948,1762426242394,-1500.0,0.00016868,2]
[393286949,1762426242403,-1500.0,0.00016868,2]
[393286950,1762426242413,-1500.0,0.00016868,2]
[393286951,1762426242421,-1503.46009537,0.00016868,2]
[393286952,1762426242431,-1000.0,0.00016881,2]
[393286953,1762426242440,-1020.11501514,0.00016881,2]
[393286954,1762426242449,-684.3,0.00016885,2]
[393286955,1762426242459,-983.00459956,0.00016888,2]
[393286956,1762426242468,-316.47,0.0001691,2]
[393286957,1762426242477,-358.79,0.00016911,2]